fUSD/lending_fUSD_20240428
["ID","MTS","AMOUNT","RATE_DAILY","PERIOD"]
[323786108,1714300241387,-502.67375649,0.00013698,2]
[323786109,1714300241396,-500.0,0.00013698,2]
[323786110,1714300241405,-500.0,0.00013698,2]
[323786111,1714300241414,-500.0,0.00013698,2]
[323786112,1714300241423,-1003.07,0.00013698,2]
[323786113,1714300241433,-1662.98,0.00013698,2]
[323786114,1714300241442,-501.83031497,0.00013698,2]
[323786115,1714300241451,-500.0,0.00013698,2]
[323786116,1714300241460,-775.8,0.00013698,2]
[323786117,1714300241469,-500.0,0.00013698,2]
[323786118,1714300241478,-764.1,0.00013698,2]
[323786119,1714300241487,-500.0,0.00013698,2]
[323786120,1714300241496,-500.0,0.00013698,2]
[323786121,1714300241506,-600.34,0.00013698,2]
[323786122,1714300241514,-500.0,0.00013698,2]
[323786123,1714300241524,-500.0,0.00013698,2]
[323786124,1714300241533,-500.0,0.00013698,2]
[323786125,1714300241542,-516.96,0.00013698,2]
[323786126,1714300241552,-500.0,0.00013698,2]
[323786127,1714300241563,-152.95,0.00013698,2]
[323786128,1714300241575,-500.0,0.00013698,2]
[323786129,1714300241584,-500.0,0.00013698,2]
[323786130,1714300241594,-992.99,0.00013698,2]
[323786131,1714300241604,-500.0,0.00013698,2]
[323786132,1714300241613,-500.74146815,0.00013698,2]
[323786133,1714300241622,-895.06,0.00013698,2]
[323786134,1714300241633,-500.0,0.00013698,2]
[323786135,1714300241643,-500.0,0.00013698,2]
[323786136,1714300241652,-500.0,0.00013698,2]
[323786137,1714300241662,-534.33,0.00013698,2]
[323786138,1714300241671,-788.47,0.00013698,2]
[323786139,1714300241680,-500.0,0.00013698,2]
[323786140,1714300241689,-500.0,0.00013698,2]
[323786141,1714300241699,-778.77,0.00013698,2]
[323786142,1714300241708,-500.0,0.00013698,2]
[323786143,1714300241717,-500.0,0.00013698,2]
[323786144,1714300241726,-502.29037509,0.00013698,2]
[323786145,1714300241735,-710.67,0.00013698,2]
[323786146,1714300241744,-500.0,0.00013698,2]
[323786147,1714300241754,-500.0,0.00013698,2]
[323786148,1714300241763,-500.0,0.00013698,2]
[323786149,1714300241772,-500.0,0.00013698,2]
[323786150,1714300241781,-500.0,0.00013698,2]
[323786151,1714300241790,-500.0,0.00013698,2]
[323786152,1714300241800,-500.0,0.00013698,2]
[323786153,1714300241809,-1797.99,0.00013698,2]
[323786154,1714300241820,-902.23,0.00013698,2]
[323786155,1714300241829,-500.0,0.00013698,2]
[323786156,1714300241838,-500.0,0.00013698,2]
[323786157,1714300241848,-1036.64,0.00013698,2]
[323786158,1714300241857,-500.0,0.00013698,2]
[323786159,1714300241867,-500.0,0.00013698,2]
[323786160,1714300241876,-363.28831641,0.00013698,2]
[323786161,1714300241885,-500.0,0.00013698,2]
[323786162,1714300241894,-709.4,0.00013698,2]
[323786163,1714300241906,-507.36630636,0.00013698,2]
[323786164,1714300241915,-500.0,0.00013698,2]
[323786165,1714300241924,-500.0,0.00013698,2]
[323786166,1714300241934,-1118.95,0.00013698,2]
[323786167,1714300241943,-1102.87,0.00013698,2]
[323786168,1714300241953,-686.57,0.00013698,2]
[323786169,1714300241962,-500.0,0.00013698,2]
[323786170,1714300241972,-481.40607809,0.00013698,2]
[323786171,1714300241981,-539.79,0.00013698,2]
[323786172,1714300241990,-500.0,0.00013698,2]
[323786173,1714300241999,-500.0,0.00013698,2]
[323786174,1714300242008,-582.43,0.00013698,2]
[323786175,1714300242017,-620.71,0.00013698,2]
[323786176,1714300242027,-500.0,0.00013698,2]
[323786177,1714300242037,-500.0,0.00013698,2]
[323786178,1714300242047,-500.0,0.00013698,2]
[323786179,1714300242057,-500.0,0.00013698,2]
[323786180,1714300242068,-500.0,0.00013698,2]
[323786181,1714300242077,-500.0,0.00013698,2]
[323786182,1714300242087,-528.92,0.00013698,2]
[323786183,1714300242095,-500.0,0.00013698,2]
[323786184,1714300242105,-702.56,0.00013698,2]
[323786185,1714300242114,-500.0,0.00013698,2]
[323786186,1714300242123,-500.0,0.00013698,2]
[323786187,1714300242132,-500.0,0.00013698,2]
[323786188,1714300242141,-505.43481346,0.00013698,2]
[323786189,1714300242150,-1779.91,0.00013698,2]
[323786190,1714300242159,-500.0,0.00013698,2]
[323786191,1714300242169,-500.0,0.00013698,2]
[323786192,1714300242179,-500.0,0.00013698,2]
[323786193,1714300242188,-537.52,0.00013698,2]
[323786194,1714300242197,-1346.72,0.00013698,2]
[323786195,1714300242206,-501.43,0.00013698,2]
[323786196,1714300242215,-500.0,0.00013698,2]
[323786197,1714300242224,-539.25,0.00013698,2]
[323786198,1714300242233,-1087.38,0.00013698,2]
[323786199,1714300242242,-505.69,0.00013698,2]
[323786200,1714300242252,-1872.87,0.00013698,2]
[323786201,1714300242261,-500.95287457,0.00013698,2]
[323786202,1714300242271,-500.0,0.00013698,2]
[323786203,1714300242280,-500.0,0.00013698,2]
[323786204,1714300242289,-500.0,0.00013698,2]
[323786205,1714300242299,-842.05,0.00013698,2]
[323786206,1714300242310,-849.49,0.00013698,2]
[323786207,1714300242321,-870.42,0.00013698,2]
[323786208,1714300242329,-2368.4,0.00013698,2]
[323786209,1714300242338,-500.0,0.00013698,2]
[323786210,1714300242347,-500.0,0.00013698,2]
[323786211,1714300242357,-500.0,0.00013698,2]
[323786212,1714300242367,-500.0,0.00013698,2]
[323786213,1714300242376,-500.0,0.00013698,2]
[323786214,1714300242386,-500.0,0.00013698,2]
[323786215,1714300242395,-500.0,0.00013698,2]
[323786216,1714300242404,-500.0,0.00013698,2]
[323786217,1714300242413,-500.0,0.00013698,2]
[323786218,1714300242422,-500.0,0.00013698,2]
[323786219,1714300242431,-500.0,0.00013698,2]
[323786220,1714300242441,-500.0,0.00013698,2]
[323786221,1714300242450,-710.6,0.00013698,2]
[323786222,1714300242654,-500.0,0.00013698,2]
[323786223,1714300242665,-500.0,0.00013698,2]
[323786224,1714300242674,-500.0,0.00013698,2]
[323786225,1714300242683,-500.0,0.00013698,2]
[323786226,1714300242693,-1367.94,0.00013698,2]
[323786227,1714300242702,-500.0,0.00013698,2]
[323786228,1714300242711,-500.0,0.00013698,2]
[323786230,1714300242720,-1292.02,0.00013698,2]
[323786232,1714300242729,-500.0,0.00013698,2]
[323786234,1714300242740,-500.0,0.00013698,2]
[323786236,1714300242749,-500.0,0.00013698,2]
[323786237,1714300242758,-500.0,0.00013698,2]
[323786238,1714300242767,-504.95674833,0.00013698,2]
[323786239,1714300242776,-1510.63,0.00013698,2]
[323786240,1714300242785,-500.0,0.00013698,2]
[323786241,1714300242794,-1653.14,0.00013698,2]
[323786242,1714300242803,-500.0,0.00013698,2]
[323786243,1714300242811,-297.97049873,0.00013698,2]
[323786244,1714300242823,-1911.18,0.00013698,2]
[323786245,1714300242833,-500.0,0.00013698,2]
[323786246,1714300242842,-500.0,0.00013698,2]
[323786249,1714300242851,-500.0,0.00013698,2]
[323786250,1714300242859,-1083.92,0.00013698,2]
[323786252,1714300242868,-500.0,0.00013698,2]
[323786254,1714300242878,-1427.74,0.00013698,2]
[323786256,1714300242886,-502.00729791,0.00013698,2]
[323786258,1714300242895,-504.44604843,0.00013698,2]
[323786261,1714300242904,-500.0,0.00013698,2]
[323786264,1714300242914,-1984.87,0.00013698,2]
[323786267,1714300242923,-500.0,0.00013698,2]
[323786269,1714300242932,-500.0,0.00013698,2]
[323786271,1714300242940,-2127.53,0.00013698,2]
[323786273,1714300242949,-1868.07,0.00013698,2]
[323786275,1714300242958,-1311.21,0.00013698,2]
[323786277,1714300242967,-1916.13,0.00013698,2]
[323786279,1714300242976,-500.0,0.00013698,2]
[323786281,1714300242985,-355.42843747,0.00013698,2]
[323786283,1714300242994,-501.98611609,0.00013698,2]
[323786284,1714300243003,-556.37,0.00013698,2]
[323786285,1714300243012,-500.0,0.00013698,2]
[323786286,1714300243021,-500.0,0.00013698,2]
[323786287,1714300243031,-500.0,0.00013698,2]
[323786288,1714300243040,-708.31,0.00013698,2]
[323786289,1714300243049,-500.0,0.00013698,2]
[323786290,1714300243058,-500.0,0.00013698,2]
[323786291,1714300243069,-500.0,0.00013698,2]
[323786292,1714300243078,-555.58,0.00013698,2]
[323786293,1714300243087,-272.81592221,0.00013698,2]
[323786294,1714300243096,-500.0,0.00013698,2]
[323786295,1714300243105,-500.0,0.00013698,2]
[323786296,1714300243115,-560.89,0.00013698,2]
[323786297,1714300243124,-1994.12,0.00013698,2]
[323786298,1714300243133,-500.0,0.00013698,2]
[323786299,1714300243142,-500.0,0.00013698,2]
[323786300,1714300243151,-500.0,0.00013698,2]
[323786301,1714300243160,-810.66,0.00013698,2]
[323786302,1714300243170,-2795.05,0.00013698,2]
[323786303,1714300243179,-500.0,0.00013698,2]
[323786304,1714300243188,-772.7,0.00013698,2]
[323786305,1714300243198,-987.38,0.00013698,2]
[323786306,1714300243207,-500.0,0.00013698,2]
[323786307,1714300243216,-500.0,0.00013698,2]
[323786308,1714300243225,-500.0,0.00013698,2]
[323786309,1714300243234,-1319.64,0.00013698,2]
[323786310,1714300243243,-500.0,0.00013698,2]
[323786311,1714300243253,-500.0,0.00013698,2]
[323786312,1714300243262,-500.0,0.00013698,2]
[323786313,1714300243272,-500.57,0.00013698,2]
[323786314,1714300243282,-500.0,0.00013698,2]
[323786315,1714300243291,-500.0,0.00013698,2]
[323786316,1714300243300,-500.0,0.00013698,2]
[323786317,1714300243309,-747.47,0.00013698,2]
[323786318,1714300243319,-293.72138268,0.00013698,2]
[323786319,1714300243391,-562.99630196,0.00013698,2]
[323786320,1714300243585,-753.37231536,0.00013698,2]
[323786321,1714300243594,-529.05,0.00013698,2]
[323786322,1714300243603,-500.0,0.00013698,2]
[323786323,1714300243612,-500.0,0.00013698,2]
[323786324,1714300243621,-372.64135352,0.00013698,2]
[323786325,1714300243630,-2357.71,0.00013698,2]
[323786326,1714300243639,-506.38,0.00013698,2]
[323786327,1714300243649,-500.0,0.00013698,2]
[323786328,1714300243658,-1089.92,0.00013698,2]
[323786329,1714300243667,-500.0,0.00013698,2]
[323786330,1714300243676,-500.0,0.00013698,2]
[323786331,1714300243686,-500.0,0.00013698,2]
[323786332,1714300243695,-1415.94,0.00013698,2]
[323786333,1714300243704,-880.09,0.00013698,2]
[323786334,1714300243713,-500.0,0.00013698,2]
[323786335,1714300243723,-500.0,0.00013698,2]
[323786336,1714300243732,-1912.29,0.00013698,2]
[323786337,1714300243742,-500.0,0.00013698,2]
[323786338,1714300243751,-1119.53,0.00013698,2]
[323786339,1714300243760,-742.58,0.00013698,2]
[323786340,1714300243770,-500.0,0.00013698,2]
[323786341,1714300243779,-1253.44,0.00013698,2]
[323786342,1714300243788,-551.93,0.00013698,2]
[323786343,1714300243798,-770.53,0.00013698,2]
[323786344,1714300243807,-992.38,0.00013698,2]
[323786345,1714300243818,-500.0,0.00013698,2]
[323786346,1714300243827,-500.0,0.00013698,2]
[323786347,1714300243836,-734.08,0.00013698,2]
[323786348,1714300243845,-500.0,0.00013698,2]
[323786349,1714300243854,-2152.4,0.00013698,2]
[323786350,1714300243863,-590.97,0.00013698,2]
[323786351,1714300243873,-500.0,0.00013698,2]
[323786352,1714300243883,-525.63,0.00013698,2]
[323786353,1714300243892,-1357.25,0.00013698,2]
[323786354,1714300243901,-1881.11,0.00013698,2]
[323786355,1714300243912,-500.0,0.00013698,2]
[323786356,1714300243922,-1575.35,0.00013698,2]
[323786357,1714300243931,-2300.15,0.00013698,2]
[323786358,1714300243941,-500.0,0.00013698,2]
[323786359,1714300243952,-500.0,0.00013698,2]
[323786360,1714300243963,-1602.56,0.00013698,2]
[323786361,1714300243972,-500.0,0.00013698,2]
[323786362,1714300243981,-500.0,0.00013698,2]
[323786363,1714300243990,-500.0,0.00013698,2]
[323786364,1714300243999,-652.87,0.00013698,2]
[323786365,1714300244009,-500.0,0.00013698,2]
[323786366,1714300244018,-500.0,0.00013698,2]
[323786367,1714300244028,-1327.68,0.00013698,2]
[323786368,1714300244037,-500.0,0.00013698,2]
[323786369,1714300244047,-500.0,0.00013698,2]
[323786370,1714300244056,-1395.1,0.00013698,2]
[323786371,1714300244066,-977.57,0.00013698,2]
[323786372,1714300244076,-500.0,0.00013698,2]
[323786373,1714300244086,-1222.22,0.00013698,2]
[323786374,1714300244095,-500.0,0.00013698,2]
[323786375,1714300244104,-500.0,0.00013698,2]
[323786376,1714300244113,-921.02,0.00013698,2]
[323786377,1714300244122,-500.0,0.00013698,2]
[323786378,1714300244132,-500.0,0.00013698,2]
[323786379,1714300244141,-500.0,0.00013698,2]
[323786380,1714300244152,-943.3,0.00013698,2]
[323786381,1714300244161,-500.0,0.00013698,2]
[323786382,1714300244170,-500.0,0.00013698,2]
[323786383,1714300244179,-657.95,0.00013698,2]
[323786384,1714300244189,-504.65,0.00013698,2]
[323786385,1714300244198,-500.0,0.00013698,2]
[323786386,1714300244208,-1012.8,0.00013698,2]
[323786387,1714300244218,-500.0,0.00013698,2]
[323786388,1714300244226,-547.72,0.00013698,2]
[323786389,1714300244235,-500.0,0.00013698,2]
[323786390,1714300244245,-500.0,0.00013698,2]
[323786391,1714300244254,-1706.79,0.00013698,2]
[323786392,1714300244263,-511.23966098,0.00013698,2]
[323786393,1714300244272,-500.0,0.00013698,2]
[323786394,1714300244281,-2216.64,0.00013698,2]
[323786395,1714300244290,-500.0,0.00013698,2]
[323786396,1714300244300,-500.0,0.00013698,2]
[323786397,1714300244309,-503.46092609,0.00013698,2]
[323786398,1714300244318,-560.2,0.00013698,2]
[323786399,1714300244328,-512.33,0.00013698,2]
[323786400,1714300244337,-500.0,0.00013698,2]
[323786401,1714300244347,-500.0,0.00013698,2]
[323786402,1714300244356,-505.24472314,0.00013698,2]
[323786403,1714300244366,-500.0,0.00013698,2]
[323786404,1714300244375,-1941.98,0.00013698,2]
[323786405,1714300244385,-570.97,0.00013698,2]
[323786406,1714300244394,-500.0,0.00013698,2]
[323786407,1714300244403,-500.0,0.00013698,2]
[323786408,1714300244414,-500.0,0.00013698,2]
[323786409,1714300244425,-500.0,0.00013698,2]
[323786410,1714300244434,-500.0,0.00013698,2]
[323786411,1714300244443,-500.0,0.00013698,2]
[323786412,1714300244454,-500.0,0.00013698,2]
[323786413,1714300244463,-2054.75,0.00013698,2]
[323786414,1714300244473,-260.81920755,0.00013698,2]
[323786415,1714300244482,-500.0,0.00013698,2]
[323786416,1714300244491,-500.0,0.00013698,2]
[323786417,1714300244501,-500.0,0.00013698,2]
[323786418,1714300244510,-500.0,0.00013698,2]
[323786419,1714300244519,-500.0,0.00013698,2]
[323786420,1714300244529,-500.0,0.00013698,2]
[323786421,1714300244538,-1290.26,0.00013698,2]
[323786422,1714300244547,-500.0,0.00013698,2]
[323786423,1714300244560,-500.0,0.00013698,2]
[323786424,1714300244570,-500.0,0.00013698,2]
[323786425,1714300244579,-500.0,0.00013698,2]
[323786426,1714300244588,-1069.29,0.00013698,2]
[323786427,1714300244598,-500.0,0.00013698,2]
[323786428,1714300244607,-500.0,0.00013698,2]
[323786429,1714300244617,-1000.0,0.00013698,2]
[323786430,1714300244625,-500.0,0.00013698,2]
[323786431,1714300244636,-500.0,0.00013698,2]
[323786432,1714300244646,-500.0,0.00013698,2]
[323786433,1714300244655,-500.0,0.00013698,2]
[323786434,1714300244664,-500.0,0.00013698,2]
[323786435,1714300244673,-500.0,0.00013698,2]
[323786436,1714300244683,-500.0,0.00013698,2]
[323786437,1714300244692,-500.0,0.00013698,2]
[323786438,1714300244701,-500.0,0.00013698,2]
[323786439,1714300244711,-852.48,0.00013698,2]
[323786440,1714300244721,-1237.46,0.00013698,2]
[323786441,1714300244730,-1686.02,0.00013698,2]
[323786442,1714300244739,-529.44,0.00013698,2]
[323786443,1714300244749,-500.0,0.00013698,2]
[323786444,1714300244758,-1202.26,0.00013698,2]
[323786445,1714300244767,-500.0,0.00013698,2]
[323786446,1714300244777,-500.0,0.00013698,2]
[323786447,1714300244786,-774.79,0.00013698,2]
[323786448,1714300244795,-500.0,0.00013698,2]
[323786449,1714300244804,-936.97,0.00013698,2]
[323786450,1714300244813,-500.0,0.00013698,2]
[323786451,1714300244823,-581.88,0.00013698,2]
[323786452,1714300244832,-500.0,0.00013698,2]
[323786453,1714300244841,-1554.19,0.00013698,2]
[323786454,1714300244850,-500.0,0.00013698,2]
[323786455,1714300244859,-1397.23,0.00013698,2]
[323786456,1714300244870,-1160.39,0.00013698,2]
[323786457,1714300244880,-500.0,0.00013698,2]
[323786458,1714300244891,-500.0,0.00013698,2]
[323786459,1714300244900,-501.81,0.00013698,2]
[323786460,1714300244910,-507.03,0.00013698,2]
[323786461,1714300244920,-500.0,0.00013698,2]
[323786462,1714300244929,-500.0,0.00013698,2]
[323786463,1714300244939,-518.96,0.00013698,2]
[323786464,1714300244949,-958.27,0.00013698,2]
[323786465,1714300244960,-973.03,0.00013698,2]
[323786466,1714300244970,-500.0,0.00013698,2]
[323786467,1714300244979,-500.0,0.00013698,2]
[323786468,1714300244988,-500.0,0.00013698,2]
[323786469,1714300244998,-511.8,0.00013698,2]
[323786470,1714300245007,-500.0,0.00013698,2]
[323786471,1714300245016,-500.0,0.00013698,2]
[323786472,1714300245025,-594.37,0.00013698,2]
[323786473,1714300245035,-2000.0,0.00013698,2]
[323786474,1714300245044,-500.0,0.00013698,2]
[323786475,1714300245053,-500.0,0.00013698,2]
[323786476,1714300245062,-1350.4,0.00013698,2]
[323786477,1714300245072,-500.0,0.00013698,2]
[323786478,1714300245081,-1667.79,0.00013698,2]
[323786479,1714300245090,-500.0,0.00013698,2]
[323786480,1714300245100,-888.26,0.00013698,2]
[323786481,1714300245109,-500.0,0.00013698,2]
[323786482,1714300245118,-500.0,0.00013698,2]
[323786483,1714300245129,-500.0,0.00013698,2]
[323786484,1714300245138,-502.29648039,0.00013698,2]
[323786485,1714300245147,-572.23,0.00013698,2]
[323786486,1714300245156,-1052.72,0.00013698,2]
[323786487,1714300245171,-589.24,0.00013698,2]
[323786488,1714300245190,-572.29282006,0.00013698,2]
[323786489,1714300245203,-500.35718249,0.00013698,2]
[323786490,1714300245212,-500.0,0.00013698,2]
[323786491,1714300245221,-590.78,0.00013698,2]
[323786492,1714300245230,-1363.52,0.00013698,2]
[323786493,1714300245240,-500.0,0.00013698,2]
[323786494,1714300245249,-566.14,0.00013698,2]
[323786495,1714300245258,-1160.46,0.00013698,2]
[323786496,1714300245267,-426.41598988,0.00013698,2]
[323786497,1714300245277,-500.0,0.00013698,2]
[323786498,1714300245286,-767.0,0.00013698,2]
[323786499,1714300245296,-642.35,0.00013698,2]
[323786500,1714300245305,-500.0,0.00013698,2]
[323786501,1714300245314,-500.0,0.00013698,2]
[323786502,1714300245325,-914.76,0.00013698,2]
[323786503,1714300245335,-500.0,0.00013698,2]
[323786504,1714300245345,-1231.91,0.00013698,2]
[323786505,1714300245354,-500.0,0.00013698,2]
[323786506,1714300245364,-1107.34,0.00013698,2]
[323786507,1714300245372,-528.55,0.00013698,2]
[323786508,1714300245382,-1808.64,0.00013698,2]
[323786509,1714300245392,-601.49,0.00013698,2]
[323786510,1714300245401,-746.83,0.00013698,2]
[323786511,1714300245411,-500.0,0.00013698,2]
[323786512,1714300245420,-609.59,0.00013698,2]
[323786513,1714300245460,-500.0,0.00013698,2]
[323786514,1714300245469,-500.0,0.00013698,2]
[323786515,1714300245479,-941.7,0.00013698,2]
[323786516,1714300245489,-1486.01,0.00013698,2]
[323786517,1714300245499,-500.0,0.00013698,2]
[323786518,1714300245509,-549.98,0.00013698,2]
[323786519,1714300245518,-515.79,0.00013698,2]
[323786520,1714300245527,-686.86,0.00013698,2]
[323786521,1714300245536,-500.0,0.00013698,2]
[323786522,1714300245548,-500.0,0.00013698,2]
[323786523,1714300245560,-500.0,0.00013698,2]
[323786524,1714300245570,-500.0,0.00013698,2]
[323786525,1714300245579,-1720.0,0.00013698,2]
[323786526,1714300245589,-574.50990889,0.00013698,2]
[323786527,1714300245599,-1424.68,0.00013698,2]
[323786528,1714300245608,-500.0,0.00013698,2]
[323786529,1714300245617,-500.0,0.00013698,2]
[323786530,1714300245627,-500.0,0.00013698,2]
[323786531,1714300245638,-500.0,0.00013698,2]
[323786532,1714300245649,-500.0,0.00013698,2]
[323786533,1714300245658,-796.91,0.00013698,2]
[323786534,1714300245667,-1486.08,0.00013698,2]
[323786535,1714300245677,-1587.53,0.00013698,2]
[323786537,1714300245686,-500.0,0.00013698,2]
[323786540,1714300245898,-533.57,0.00013698,2]
[323786541,1714300245908,-500.0,0.00013698,2]
[323786542,1714300245918,-502.4322608,0.00013698,2]
[323786543,1714300245927,-1224.88,0.00013698,2]
[323786544,1714300245936,-502.4680514,0.00013698,2]
[323786545,1714300245945,-500.0,0.00013698,2]
[323786546,1714300245954,-500.0,0.00013698,2]
[323786547,1714300245964,-500.0,0.00013698,2]
[323786548,1714300245973,-500.0,0.00013698,2]
[323786549,1714300245982,-500.0,0.00013698,2]
[323786550,1714300245992,-1239.7,0.00013698,2]
[323786551,1714300246001,-500.0,0.00013698,2]
[323786552,1714300246010,-500.0,0.00013698,2]
[323786553,1714300246021,-1214.22,0.00013698,2]
[323786554,1714300246030,-498.4964962,0.00013698,2]
[323786555,1714300246039,-2154.22,0.00013698,2]
[323786556,1714300246049,-529.3,0.00013698,2]
[323786557,1714300246058,-509.89,0.00013698,2]
[323786558,1714300246068,-567.64,0.00013698,2]
[323786559,1714300246078,-682.49,0.00013698,2]
[323786560,1714300246087,-750.94,0.00013698,2]
[323786561,1714300246096,-1808.06,0.00013698,2]
[323786562,1714300246106,-500.0,0.00013698,2]
[323786563,1714300246116,-500.0,0.00013698,2]
[323786564,1714300246125,-500.0,0.00013698,2]
[323786565,1714300246135,-500.0,0.00013698,2]
[323786566,1714300246145,-500.0,0.00013698,2]
[323786567,1714300246154,-609.92,0.00013698,2]
[323786568,1714300246163,-630.11,0.00013698,2]
[323786569,1714300246172,-167.33843038,0.00013698,2]
[323786570,1714300246182,-500.0,0.00013698,2]
[323786571,1714300246192,-947.78,0.00013698,2]
[323786572,1714300246201,-1098.84,0.00013698,2]
[323786573,1714300246210,-591.71,0.00013698,2]
[323786574,1714300246221,-500.0,0.00013698,2]
[323786575,1714300246231,-500.0,0.00013698,2]
[323786576,1714300246240,-521.39,0.00013698,2]
[323786577,1714300246250,-500.0,0.00013698,2]
[323786578,1714300246260,-705.4,0.00013698,2]
[323786579,1714300246270,-882.14,0.00013698,2]
[323786581,1714300246279,-500.0,0.00013698,2]
[323786583,1714300246289,-500.0,0.00013698,2]
[323786584,1714300246298,-500.0,0.00013698,2]
[323786585,1714300246307,-500.0,0.00013698,2]
[323786586,1714300246317,-500.0,0.00013698,2]
[323786587,1714300246329,-500.0,0.00013698,2]
[323786588,1714300246338,-500.0,0.00013698,2]
[323786589,1714300246348,-500.0,0.00013698,2]
[323786590,1714300246357,-500.0,0.00013698,2]
[323786591,1714300246366,-500.0,0.00013698,2]
[323786592,1714300246376,-500.0,0.00013698,2]
[323786593,1714300246385,-500.0,0.00013698,2]
[323786594,1714300246395,-500.0,0.00013698,2]
[323786595,1714300246404,-1442.26,0.00013698,2]
[323786596,1714300246414,-500.0,0.00013698,2]
[323786597,1714300246423,-500.0,0.00013698,2]
[323786598,1714300246432,-505.66632007,0.00013698,2]
[323786599,1714300246442,-501.17830535,0.00013698,2]
[323786600,1714300246451,-500.0,0.00013698,2]
[323786601,1714300246461,-500.0,0.00013698,2]
[323786602,1714300246470,-500.0,0.00013698,2]
[323786603,1714300246479,-500.0,0.00013698,2]
[323786604,1714300246488,-500.0,0.00013698,2]
[323786605,1714300246497,-500.0,0.00013698,2]
[323786606,1714300246506,-503.64409896,0.00013698,2]
[323786607,1714300246516,-500.0,0.00013698,2]
[323786608,1714300246525,-4734.71,0.00013698,2]
[323786609,1714300246535,-500.0,0.00013698,2]
[323786610,1714300246545,-504.2737944,0.00013698,2]
[323786611,1714300246558,-500.0,0.00013698,2]
[323786612,1714300246568,-1260.93,0.00013698,2]
[323786613,1714300246580,-500.0,0.00013698,2]
[323786614,1714300246589,-582.25,0.00013698,2]
[323786615,1714300246599,-1274.67,0.00013698,2]
[323786616,1714300246608,-525.7,0.00013698,2]
[323786617,1714300246617,-831.19,0.00013698,2]
[323786618,1714300246628,-659.85,0.00013698,2]
[323786619,1714300246638,-503.04686889,0.00013698,2]
[323786620,1714300246647,-500.0,0.00013698,2]
[323786621,1714300246656,-996.38,0.00013698,2]
[323786622,1714300246665,-500.0,0.00013698,2]
[323786623,1714300246674,-500.0,0.00013698,2]
[323786624,1714300246683,-2747.4,0.00013698,2]
[323786625,1714300246692,-500.0,0.00013698,2]
[323786626,1714300246703,-500.0,0.00013698,2]
[323786627,1714300246713,-1524.67,0.00013698,2]
[323786628,1714300246722,-6543.82,0.00013698,2]
[323786629,1714300246732,-500.0,0.00013698,2]
[323786630,1714300246741,-995.33,0.00013698,2]
[323786631,1714300246751,-593.53467167,0.00013698,2]
[323786632,1714300246761,-500.0,0.00013698,2]
[323786633,1714300246772,-1373.06,0.00013698,2]
[323786634,1714300246782,-1345.87,0.00013698,2]
[323786635,1714300246792,-1252.63,0.00013698,2]
[323786636,1714300246802,-552.13,0.00013698,2]